bitfinex-derivatives/quotes_BNBF0:USTF0_20250810
["timestamp","ask_amount","ask_price","bid_price","bid_amount"]
[1754869285112,0.21619943,805.94,805.53,0.83802401]
[1754869289219,0.21619943,805.94,805.52,0.83802401]
[1754869292219,0.21619943,805.94,805.3,1.1152891]
[1754869292220,0.21619943,805.94,805.53,0.83802401]
[1754869292815,0.21619943,805.94,805.54,0.83802401]
[1754869294121,0.21619943,805.94,805.58,0.83802401]
[1754869294321,0.21619943,805.94,805.59,0.83802401]
[1754869295419,0.21619943,805.94,805.57,0.83802401]
[1754869296122,0.21619943,805.94,805.54,0.83802401]
[1754869297925,0.21619943,805.94,805.53,0.83802401]
[1754869299822,0.21619943,805.94,805.54,0.83802401]
[1754869300828,0.21619943,805.94,805.56,0.83802401]
[1754869303828,0.21619943,805.94,805.57,0.83802401]
[1754869305134,0.21619943,805.94,805.58,0.83802401]
[1754869305830,0.21619943,805.94,805.63,0.83802401]
[1754869308036,0.21619943,805.94,805.6,0.83802401]
[1754869308433,0.21619943,805.94,805.61,0.83802401]
[1754869308637,0.21619943,805.94,805.59,0.83802401]
[1754869309244,0.21619943,805.94,805.6,0.83802401]
[1754869309439,0.21619943,805.94,805.59,0.83802401]
[1754869310340,0.21619943,805.94,805.6,0.83802401]
[1754869312241,0.21619943,805.94,805.61,0.83802401]
[1754869313241,0.21619943,805.94,805.62,0.83802401]
[1754869314143,0.21619943,805.94,805.63,0.83802401]
[1754869315243,0.21619943,805.94,805.64,0.83802401]
[1754869316242,0.21619943,805.94,805.65,0.83802401]
[1754869317147,0.21619943,805.94,805.66,0.83802401]
[1754869317846,0.21619943,805.94,805.68,0.83802401]
[1754869318242,0.21619943,805.94,805.69,0.83802401]
[1754869318748,0.21619943,805.94,805.7,0.83802401]
[1754869319348,0.21619943,805.94,805.71,0.83802401]
[1754869319548,0.21619943,805.94,805.72,0.83802401]
[1754869322450,0.8371882,806.2,805.71,0.62186957]
[1754869322651,0.8371882,806.18,805.56,1.1152891]
[1754869323247,0.8371882,806.17,805.55,1.1152891]
[1754869324547,0.8371882,806.17,805.56,1.1152891]
[1754869324752,0.8371882,806.15,805.54,1.1152891]
[1754869325452,0.21617727,806.0,805.54,1.1152891]
[1754869327253,0.21617727,806.0,805.56,1.1152891]
[1754869332352,0.21617727,806.0,805.57,1.1152891]
[1754869334553,0.21617727,806.0,805.59,1.1152891]
[1754869334753,0.21617727,806.0,805.6,1.1152891]
[1754869335657,0.21617727,806.0,805.56,1.1152891]
[1754869336355,0.21617727,806.0,805.54,1.1152891]
[1754869339456,0.21617727,806.0,805.55,1.1152891]
[1754869339861,0.21617727,806.0,805.54,1.1152891]
[1754869340178,0.21617727,806.0,805.55,1.1152891]
[1754869340358,0.21617727,806.0,805.56,1.1152891]
[1754869342158,0.21617727,806.0,805.58,1.1152891]
[1754869342859,0.21617727,806.0,805.56,1.1152891]
[1754869345669,0.21617727,806.0,805.6,1.1152891]
[1754869346273,0.21617727,806.0,805.59,1.1152891]
[1754869350376,0.21617727,806.0,805.6,1.1152891]
[1754869352778,0.21617727,806.0,805.62,1.1152891]
[1754869356075,0.21617727,806.0,805.61,1.1152891]
[1754869356280,0.21617727,806.0,805.62,1.1152891]
[1754869356780,0.21617727,806.0,805.61,1.1152891]
[1754869357878,0.21617727,806.0,805.62,1.1152891]
[1754869358577,0.21617727,806.0,804.67,3.9077546]
[1754869358578,0.21617727,806.0,805.61,1.1152891]
[1754869361879,0.21617727,806.0,805.6,1.1152891]
[1754869362983,0.21617727,806.0,805.58,1.1152891]
[1754869363483,0.21617727,806.0,804.68,3.9077546]
[1754869363484,0.21617727,806.0,805.57,1.1152891]
[1754869364179,0.21617727,806.0,805.59,1.1152891]
[1754869364481,0.21617727,806.0,805.6,1.1152891]
[1754869368784,0.21617727,806.0,805.61,1.1152891]
[1754869369187,0.21617727,806.0,805.6,1.1152891]
[1754869372887,0.21617727,806.0,805.65,1.1152891]
[1754869375992,0.21617727,806.0,805.64,1.1152891]
[1754869376693,0.21617727,806.0,805.4,1.1152891]
[1754869376993,0.21617727,806.0,805.39,1.1152891]
[1754869378790,0.21617727,806.0,805.38,1.1152891]
[1754869379994,0.21617727,806.0,805.37,1.1152891]
[1754869382592,0.21617727,806.0,805.62,0.83876088]
[1754869384298,0.21617727,806.0,805.69,0.83876088]
[1754869384996,0.21617727,806.0,805.7,0.83876088]
[1754869385697,0.21617727,806.0,805.72,0.83876088]
[1754869389796,0.21617727,806.0,805.73,0.83876088]
[1754869392404,0.21617727,806.0,805.74,0.83876088]
[1754869392905,0.8371882,806.25,805.73,0.62261383]
[1754869393204,0.8371882,806.24,805.6,1.1152891]
[1754869394205,0.8371882,806.23,805.61,1.1152891]
[1754869394702,0.8371882,806.22,805.63,1.1152891]
[1754869395902,0.21615712,806.08,805.63,1.1152891]
[1754869398707,0.21615712,806.08,805.57,1.1152891]
[1754869402205,0.21615712,806.08,805.52,1.1152891]
[1754869403109,0.21615712,806.08,805.51,1.1152891]
[1754869408512,0.21615712,806.08,805.53,1.1152891]
[1754869408708,0.21615712,806.08,805.54,1.1152891]
[1754869409414,0.21615712,806.08,805.55,1.1152891]
[1754869412216,0.21615712,806.08,805.59,1.1152891]
[1754869412412,0.21615712,806.08,805.6,1.1152891]
[1754869412917,0.21615712,806.08,805.64,1.1152891]
[1754869415519,0.21615712,806.08,805.61,1.1152891]
[1754869415922,0.21615712,806.08,805.6,1.1152891]
[1754869416626,0.21615712,806.08,805.61,1.1152891]
[1754869421834,0.21615712,806.08,805.62,1.1152891]
[1754869422931,0.21615712,806.08,805.6,1.1152891]
[1754869424134,0.21615712,806.08,805.56,1.1152891]
[1754869425238,0.21615712,806.08,805.49,1.1152891]
[1754869425440,0.21615712,806.08,805.43,1.1152891]
[1754869425842,0.21615712,806.08,805.44,1.1152891]
[1754869426341,0.21615712,806.08,805.43,1.1152891]
[1754869428442,0.21615712,806.08,805.42,1.1152891]
[1754869434043,0.21615712,806.08,805.43,1.1152891]
[1754869434247,0.21615712,806.08,805.41,1.1152891]
[1754869435145,0.21615712,806.08,805.46,1.1152891]
[1754869435450,0.21615712,806.08,805.49,1.1152891]
[1754869435946,0.21615712,806.08,805.47,1.1152891]
[1754869442153,0.21615712,806.08,805.46,1.1152891]
[1754869442951,0.21615712,806.08,805.44,1.1152891]
[1754869444054,0.21615712,806.08,805.46,1.1152891]
[1754869445750,0.21615712,806.08,805.47,1.1152891]
[1754869447155,0.21615712,806.08,805.44,1.1152891]
[1754869452857,0.21615712,806.08,805.63,0.83888617]
[1754869455061,0.21615712,806.08,805.46,1.1152891]
[1754869455062,0.21615712,806.08,805.64,0.83888617]
[1754869456959,0.21615712,806.08,805.66,0.83888617]
[1754869458664,0.21615712,806.08,805.67,0.83888617]
[1754869460459,0.21615712,806.08,805.66,0.83888617]
[1754869461561,0.21615712,806.08,805.67,0.83888617]
[1754869463168,0.21615712,806.08,805.66,0.83888617]
[1754869470577,0.21615712,806.08,805.68,0.83888617]
[1754869470978,0.83663927,806.2,805.68,0.62272166]
[1754869472079,0.83663927,806.19,805.52,1.1152891]
[1754869472776,0.83663927,806.17,805.55,1.1152891]
[1754869474083,0.21617525,806.02,805.55,1.1152891]
[1754869474282,0.21617525,806.02,805.56,1.1152891]
[1754869474482,0.21617525,806.02,805.57,1.1152891]
[1754869476682,0.21617525,806.02,805.53,1.1152891]
[1754869477681,0.21617525,806.02,804.48,3.9077546]
[1754869477682,0.21617525,806.02,805.52,1.1152891]
[1754869477885,0.21617525,806.02,805.53,1.1152891]
[1754869478982,0.21617525,806.02,805.52,1.1152891]
[1754869479382,0.21617525,806.02,805.53,1.1152891]
[1754869481985,0.21617525,806.02,805.54,1.1152891]
[1754869484189,0.21617525,806.02,805.55,1.1152891]
[1754869485085,0.21617525,806.02,805.56,1.1152891]
[1754869485487,0.21617525,806.02,805.54,1.1152891]
[1754869486593,0.21617525,806.02,805.57,1.1152891]
[1754869487395,0.21617525,806.02,805.58,1.1152891]
[1754869487990,0.21617525,806.02,805.54,1.1152891]
[1754869488695,0.21617525,806.02,805.53,1.1152891]
[1754869488894,0.21617525,806.02,805.47,1.1152891]
[1754869489289,0.21617525,806.02,805.44,1.1152891]
[1754869491893,0.21617525,806.02,805.45,1.1152891]
[1754869495398,0.21617525,806.02,805.46,1.1152891]
[1754869498702,0.21617525,806.02,805.47,1.1152891]
[1754869498998,0.21617525,806.02,805.51,1.1152891]
[1754869499196,0.21617525,806.02,805.58,1.1152891]
[1754869500904,0.21617525,806.02,805.57,1.1152891]
[1754869501301,0.21617525,806.02,805.55,1.1152891]
[1754869502206,0.21617525,806.02,805.54,1.1152891]
[1754869503002,0.21617525,806.02,805.5,1.1152891]
[1754869503805,0.21617525,806.02,805.34,1.674752]
[1754869503806,0.21617525,806.02,805.51,1.1152891]
[1754869505206,0.21617525,806.02,805.5,1.1152891]
[1754869508112,0.21617525,806.02,805.51,1.1152891]
[1754869509313,0.21617525,806.02,805.52,1.1152891]
[1754869510611,0.21617525,806.02,805.54,1.1152891]
[1754869511010,0.21617525,806.02,805.53,1.1152891]
[1754869512210,0.21617525,806.02,804.74,2.7912533]
[1754869512211,0.21617525,806.02,805.52,1.1152891]
[1754869512910,0.21617525,806.02,805.54,1.1152891]
[1754869514414,0.21617525,806.02,805.55,1.1152891]
[1754869515115,0.21617525,806.02,805.54,1.1152891]
[1754869515312,0.21617525,806.02,805.55,1.1152891]
[1754869515517,0.21617525,806.02,805.52,1.1152891]
[1754869516213,0.21617525,806.02,805.51,1.1152891]
[1754869516917,0.21617525,806.02,805.49,1.1152891]
[1754869517718,0.21617525,806.02,805.51,1.1152891]
[1754869521017,0.21617525,806.02,805.5,1.1152891]
[1754869523017,0.21617525,806.02,805.47,1.1152891]
[1754869523217,0.21617525,806.02,805.48,1.1152891]
[1754869524322,0.21617525,806.02,805.49,1.1152891]
[1754869525519,0.21617525,806.02,805.5,1.1152891]
[1754869526223,0.21617525,806.02,805.51,1.1152891]
[1754869526720,0.21617525,806.02,805.52,1.1152891]
[1754869529920,0.21617525,806.02,805.51,1.1152891]
[1754869530924,0.21617525,806.02,805.52,1.1152891]
[1754869531124,0.21617525,806.02,805.69,0.83943685]
[1754869532824,0.21617525,806.02,805.64,0.83943685]
[1754869533024,0.21617525,806.02,805.67,0.83943685]
[1754869533226,0.21617525,806.02,805.7,0.83943685]
[1754869533424,0.21617525,806.02,805.74,0.83943685]
[1754869533622,0.21617525,806.02,805.75,0.83943685]
[1754869533822,0.21617525,806.02,805.78,0.83943685]
[1754869534526,0.21617525,806.02,805.77,0.83943685]
[1754869535227,0.21617525,806.02,805.75,0.83943685]
[1754869535426,0.21617525,806.02,805.74,0.83943685]
[1754869536530,0.21617525,806.02,805.73,0.83943685]
[1754869538233,0.21617525,806.02,805.72,0.83943685]
[1754869538733,0.21617525,806.02,805.71,0.83943685]
[1754869539633,0.21617525,806.02,805.7,0.83943685]
[1754869540331,0.21617525,806.02,805.69,0.83943685]
[1754869541033,0.21617525,806.02,805.76,0.83943685]
[1754869541237,0.21617525,806.02,805.75,0.83943685]
[1754869542939,0.21617525,806.02,805.74,0.83943685]
[1754869545644,0.21617525,806.02,805.75,0.83943685]
[1754869545940,0.21617525,806.02,804.47,3.9077546]
[1754869545941,0.21617525,806.02,805.87,0.83943685]
[1754869546141,0.21617525,806.02,805.88,0.83943685]
[1754869546340,0.21617525,806.02,805.89,0.83943685]
[1754869546644,0.21617525,806.02,805.84,0.83943685]
[1754869547443,0.21617525,806.02,805.83,0.83943685]
[1754869548346,0.21617525,806.02,805.82,0.83943685]
[1754869548743,0.21617525,806.02,805.83,0.83943685]
[1754869549343,0.21617525,806.02,805.82,0.83943685]
[1754869550447,0.21617525,806.02,805.81,0.83943685]
[1754869551543,0.21617525,806.02,805.8,0.83943685]
[1754869552344,0.21617525,806.02,805.79,0.83943685]
[1754869553951,0.21617525,806.02,805.8,0.83943685]
[1754869554345,0.21617525,806.02,805.79,0.83943685]
[1754869555148,0.21617525,806.02,805.81,0.83943685]
[1754869555652,0.21617525,806.02,805.8,0.83943685]
[1754869555951,0.21617525,806.02,805.81,0.83943685]
[1754869556352,0.21617525,806.02,805.84,0.83943685]
[1754869557250,0.21617525,806.02,805.83,0.83943685]
[1754869558954,0.21617525,806.02,805.82,0.83943685]
[1754869561651,0.21617525,806.02,805.81,0.83943685]
[1754869562953,0.21617525,806.02,805.8,0.83943685]
[1754869563153,0.21617525,806.02,805.81,0.83943685]
[1754869567557,0.21617525,806.02,805.86,0.83943685]
[1754869567757,0.21617525,806.02,805.87,0.83943685]
[1754869567960,0.21617525,806.02,805.85,0.83943685]
[1754869568255,0.21617525,806.02,805.87,0.83943685]
[1754869568457,0.21617525,806.02,805.85,0.83943685]
[1754869569263,0.21617525,806.02,805.84,0.83943685]
[1754869569459,0.21617525,806.02,805.85,0.83943685]
[1754869569861,0.21617525,806.02,805.84,0.83943685]
[1754869570862,0.21617525,806.02,805.85,0.83943685]
[1754869571264,0.21617525,806.02,805.84,0.83943685]
[1754869574262,0.21617525,806.02,805.83,0.83943685]
[1754869574467,0.21617525,806.02,805.84,0.83943685]
[1754869577266,0.21617525,806.02,805.83,0.83943685]
[1754869577465,0.21617525,806.02,805.84,0.83943685]
[1754869577965,0.21617525,806.02,805.86,0.83943685]
[1754869578167,0.21617525,806.02,805.85,0.83943685]
[1754869578365,0.21617525,806.02,805.88,0.83943685]
[1754869579265,0.21617525,806.02,804.76,2.7912533]
[1754869579266,0.21617525,806.02,805.87,0.83943685]
[1754869579462,0.21617525,806.02,805.86,0.83943685]
[1754869579669,0.21617525,806.02,805.87,0.83943685]
[1754869582969,0.21617525,806.02,805.86,0.83943685]
[1754869584477,0.21617525,806.02,805.87,0.83943685]
[1754869585771,0.21617525,806.02,805.89,0.83943685]
[1754869587378,0.21617525,806.02,805.9,0.83943685]
[1754869587977,0.21617525,806.02,805.91,0.83943685]
[1754869588276,0.21617525,806.02,805.92,0.83943685]
[1754869588973,0.21617525,806.02,805.93,0.83943685]
[1754869590077,0.21617525,806.02,805.94,0.83943685]
[1754869591377,0.21617525,806.02,805.95,0.83943685]
[1754869592180,0.21617525,806.02,805.96,0.83943685]
[1754869592381,0.21617525,806.02,805.97,0.83943685]
[1754869592880,0.21617525,806.02,805.8,1.1152891]
[1754869592881,0.21617525,806.02,805.98,0.83943685]
[1754869593085,0.21617525,806.02,805.87,1.1152891]
[1754869593285,0.21617525,806.02,805.89,1.1152891]
[1754869593982,0.21617525,806.02,805.88,1.1152891]
[1754869594290,0.21617525,806.02,805.89,1.1152891]
[1754869595283,0.21617525,806.02,805.9,1.1152891]
[1754869595586,0.21617525,806.02,805.89,1.1152891]
[1754869597286,0.21617525,806.02,805.9,1.1152891]
[1754869598189,0.21617525,806.02,805.89,1.1152891]
[1754869598388,0.21617525,806.02,805.9,1.1152891]
[1754869599289,0.21617525,806.02,805.91,1.1152891]
[1754869601493,0.21617525,806.02,805.92,1.1152891]
[1754869602294,0.21617525,806.02,805.93,1.1152891]
[1754869602794,0.21617525,806.02,805.96,1.1152891]
[1754869603194,0.21617525,806.02,805.97,1.1152891]
[1754869603494,0.21617525,806.02,805.98,1.1152891]
[1754869604293,0.21617525,806.02,805.99,1.1152891]
[1754869605297,0.21617525,806.02,806.01,1.1152891]
[1754869605894,0.21617525,806.02,806.0,1.1152891]
[1754869610300,0.21617525,806.02,806.01,1.1152891]
[1754869610900,0.21617525,806.02,806.0,1.1152891]
[1754869611597,0.21617525,806.02,806.01,1.1152891]
[1754869613296,0.21617525,806.02,805.88,1.674752]
[1754869613900,0.21617525,806.02,805.98,1.116944]
[1754869614698,0.21617525,806.02,805.97,1.116944]
[1754869615001,0.21617525,806.02,805.96,1.116944]
[1754869615302,0.21617525,806.02,805.97,1.116944]
[1754869615797,0.21617525,806.02,805.98,1.116944]
[1754869615999,0.21617525,806.02,805.97,1.116944]
[1754869619099,0.21617525,806.02,805.98,1.116944]
[1754869620902,0.21617525,806.02,805.96,0.83815848]
[1754869621100,0.21617525,806.02,805.91,0.83815848]
[1754869621602,0.21617525,806.02,805.93,0.83815848]
[1754869622102,0.21617525,806.02,805.94,0.83815848]
[1754869622798,0.21617525,806.02,805.97,0.83815848]
[1754869622996,0.21617525,806.02,805.96,0.83815848]
[1754869623202,0.21617525,806.02,805.95,0.83815848]
[1754869625204,0.21617525,806.02,805.94,0.83815848]
[1754869625405,0.21617525,806.02,805.96,0.83815848]
[1754869626205,0.21617525,806.02,805.95,0.83815848]
[1754869628406,0.21617525,806.02,805.94,0.83815848]
[1754869629408,0.21617525,806.02,805.93,0.83815848]
[1754869630307,0.21617525,806.02,805.94,0.83815848]
[1754869630511,0.21617525,806.02,805.93,0.83815848]
[1754869630710,0.21617525,806.02,805.94,0.83815848]
[1754869631213,0.21617525,806.02,804.89,2.7912533]
[1754869631214,0.21617525,806.02,805.93,0.83815848]
[1754869631814,0.21617525,806.02,805.92,0.83815848]
[1754869632716,0.21617525,806.02,805.93,0.83815848]
[1754869633415,0.21617525,806.02,805.94,0.83815848]
[1754869633715,0.21617525,806.02,805.93,0.83815848]
[1754869636615,0.21617525,806.02,805.88,0.83815848]
[1754869637213,0.21617525,806.02,805.87,0.83815848]
[1754869638519,0.21617525,806.02,805.88,0.83815848]
[1754869639120,0.21617525,806.02,805.89,0.83815848]
[1754869641217,0.21617525,806.02,805.88,0.83815848]
[1754869645018,0.21617525,806.02,805.87,0.83815848]
[1754869645821,0.21617525,806.02,805.88,0.83815848]
[1754869646622,0.21617525,806.02,805.89,0.83815848]
[1754869647122,0.21617525,806.02,805.9,0.83815848]
[1754869647423,0.21617525,806.02,805.89,0.83815848]
[1754869651119,0.21617525,806.02,805.9,0.83815848]
[1754869652718,0.21617525,806.02,805.91,0.83815848]
[1754869652920,0.21617525,806.02,805.61,1.674752]
[1754869652921,0.21617525,806.02,805.9,0.83815848]
[1754869653120,0.21617525,806.02,805.8,0.83815848]
[1754869653421,0.21617525,806.02,805.79,0.83815848]
[1754869654527,0.21617525,806.02,805.72,0.83815848]
[1754869655324,0.21617525,806.02,805.71,0.83815848]
[1754869656120,0.21617525,806.02,805.72,0.83815848]
[1754869656422,0.21617525,806.02,805.71,0.83815848]
[1754869658425,0.21617525,806.02,805.7,0.83815848]
[1754869659825,0.21617525,806.02,805.71,0.83815848]
[1754869661223,0.21617525,806.02,805.7,0.83815848]
[1754869661526,0.21617525,806.02,805.69,0.83815848]
[1754869662622,0.21617525,806.02,805.7,0.83815848]
[1754869663027,0.21617525,806.02,805.69,0.83815848]
[1754869663327,0.21617525,806.02,805.65,0.83815848]
[1754869665825,0.21617525,806.02,805.64,0.83815848]
[1754869668933,0.21617525,806.02,805.63,0.83815848]
[1754869669731,0.21617525,806.02,805.64,0.83815848]
[1754869671431,0.21617525,806.02,805.65,0.83815848]
[1754869672933,0.21617525,806.02,805.66,0.83815848]
[1754869673131,0.21617525,806.02,805.67,0.83815848]
[1754869674338,0.21617525,806.02,805.68,0.83815848]
[1754869674738,0.21617525,806.02,805.66,0.83815848]
[1754869676341,0.21617525,806.02,805.67,0.83815848]
[1754869677642,0.21617525,806.02,805.66,0.83815848]
[1754869678340,0.21617525,806.02,805.67,0.83815848]
[1754869678737,0.21617525,806.02,805.68,0.83815848]
[1754869679136,0.21617525,806.02,805.67,0.83815848]
[1754869679338,0.21617525,806.02,805.68,0.83815848]
[1754869681644,0.21617525,806.02,805.69,0.83815848]
[1754869682640,0.21617525,806.02,805.68,0.83815848]
[1754869682841,0.21617525,806.02,805.69,0.83815848]
[1754869684646,0.21617525,806.02,805.7,0.83815848]
[1754869689044,0.21617525,806.02,805.71,0.83815848]
[1754869690543,0.21617525,806.02,805.72,0.83815848]
[1754869691247,0.21617525,806.02,805.69,0.83815848]
[1754869692743,0.21617525,806.02,805.7,0.83815848]
[1754869695250,0.21617525,806.02,805.71,0.83815848]
[1754869697355,0.21617525,806.02,805.72,0.83815848]
[1754869700253,0.21617525,806.02,805.73,0.83815848]
[1754869701251,0.21617525,806.02,805.78,0.83815848]
[1754869701454,0.21617525,806.02,805.77,0.83815848]
[1754869702151,0.21617525,806.02,805.78,0.83815848]
[1754869703053,0.21617525,806.02,805.75,0.83815848]
[1754869705253,0.21617525,806.02,805.74,0.83815848]
[1754869705759,0.21617525,806.02,805.75,0.83815848]
[1754869706258,0.21617525,806.02,805.76,0.83815848]
[1754869709262,0.21617525,806.02,805.77,0.83815848]
[1754869710363,0.21617525,806.02,805.78,0.83815848]
[1754869711264,0.21617525,806.02,805.79,0.83815848]
[1754869712365,0.21617525,806.02,805.81,0.83815848]
[1754869712964,0.21617525,806.02,805.82,0.83815848]
[1754869713161,0.21617525,806.02,805.83,0.83815848]
[1754869715266,0.21617525,806.02,805.86,0.83815848]
[1754869715471,0.21617525,806.02,805.82,0.83815848]
[1754869715669,0.83435832,806.4,805.82,0.62204163]
[1754869715872,0.83435832,806.4,805.62,1.116944]
[1754869717273,0.83435832,806.39,805.63,1.116944]
[1754869718768,0.2161296,806.21,805.62,1.116944]
[1754869720772,0.2161296,806.21,805.63,1.116944]
[1754869723573,0.2161296,806.21,805.58,1.116944]
[1754869724874,0.2161296,806.21,805.59,1.116944]
[1754869725471,0.2161296,806.21,805.62,1.116944]
[1754869728879,0.2161296,806.21,805.63,1.116944]
[1754869732883,0.2161296,806.21,805.62,1.116944]
[1754869733382,0.2161296,806.21,805.67,1.116944]
[1754869735380,0.2161296,806.21,805.68,1.116944]
[1754869738594,0.2161296,806.21,805.67,1.116944]
[1754869739294,0.2161296,806.21,805.68,1.116944]
[1754869739494,0.2161296,806.21,805.67,1.116944]
[1754869743002,0.2161296,806.21,805.68,1.116944]
[1754869743201,0.2161296,806.21,805.69,1.116944]
[1754869747302,0.2161296,806.21,805.68,1.116944]
[1754869748402,0.2161296,806.21,805.69,1.116944]
[1754869749502,0.2161296,806.21,805.73,1.116944]
[1754869752006,0.2161296,806.21,805.75,1.116944]
[1754869752501,0.2161296,806.21,805.76,1.116944]
[1754869753108,0.2161296,806.21,805.77,1.116944]
[1754869753305,0.2161296,806.21,805.75,1.116944]
[1754869755508,0.2161296,806.21,805.65,1.116944]
[1754869758412,0.2161296,806.21,805.64,1.116944]
[1754869761512,0.2161296,806.21,805.63,1.116944]
[1754869763015,0.2161296,806.21,805.62,1.116944]
[1754869765214,0.2161296,806.21,805.63,1.116944]
[1754869765414,0.2161296,806.21,805.72,1.116944]
[1754869768315,0.2161296,806.21,805.71,1.116944]
[1754869769416,0.2161296,806.21,805.74,1.116944]
[1754869771413,0.2161296,806.21,805.75,1.116944]
[1754869773018,0.2161296,806.21,805.78,1.116944]
[1754869773415,0.2161296,806.21,805.8,1.116944]
[1754869774321,0.2161296,806.21,805.64,1.116944]
[1754869774518,0.2161296,806.21,805.67,1.116944]
[1754869775622,0.2161296,806.21,805.88,0.83826777]
[1754869777420,0.2161296,806.21,805.87,0.83826777]
[1754869778825,0.2161296,806.21,805.88,0.83826777]
[1754869780727,0.2161296,806.21,805.86,0.83826777]
[1754869781124,0.2161296,806.21,805.94,0.83826777]
[1754869781431,0.2161296,806.21,805.97,0.83826777]
[1754869782327,0.2161296,806.21,805.95,0.83826777]
[1754869784329,0.2161296,806.21,805.94,0.83826777]
[1754869785334,0.2161296,806.21,805.98,0.83826777]
[1754869785533,0.2161296,806.21,805.55,1.674752]
[1754869785534,0.2161296,806.21,805.97,0.83826777]
[1754869786335,0.2161296,806.21,805.96,0.83826777]
[1754869787336,0.2161296,806.21,805.95,0.83826777]
[1754869788337,0.2161296,806.21,805.94,0.83826777]
[1754869789232,0.2161296,806.21,805.96,0.83826777]
[1754869789634,0.2161296,806.21,805.98,0.83826777]
[1754869790336,0.2161296,806.21,806.01,0.83826777]
[1754869790736,0.2161296,806.21,805.97,0.83826777]
[1754869792433,0.2161296,806.21,805.97,0.8362277]
[1754869793534,0.2161296,806.21,805.96,0.8362277]
[1754869795036,0.2161296,806.21,805.89,0.8362277]
[1754869800538,0.2161296,806.21,805.9,0.8362277]
[1754869803847,0.2161296,806.21,805.89,0.8362277]
[1754869804942,0.2161296,806.21,805.96,0.8362277]
[1754869805146,0.2161296,806.21,805.97,0.8362277]
[1754869808853,0.2161296,806.21,805.96,0.8362277]
[1754869809548,0.2161296,806.21,805.97,0.8362277]
[1754869813456,0.2161296,806.21,805.98,0.8362277]
[1754869813752,0.2161296,806.21,805.96,0.8362277]
[1754869814358,0.2161296,806.21,805.97,0.8362277]
[1754869816255,0.2161296,806.21,805.98,0.8362277]
[1754869818063,0.2161296,806.21,806.03,0.8362277]
[1754869818958,0.2161296,806.21,806.04,0.8362277]
[1754869819258,0.2161296,806.21,806.03,0.8362277]
[1754869819864,0.2161296,806.21,806.02,0.8362277]
[1754869822366,0.2161296,806.21,806.03,0.8362277]
[1754869823067,0.2161296,806.21,806.01,0.8362277]
[1754869823367,0.2161296,806.21,806.02,0.8362277]
[1754869825264,0.2161296,806.21,806.03,0.8362277]
[1754869826166,0.2161296,806.21,806.02,0.8362277]
[1754869826368,0.2161296,806.21,806.03,0.8362277]
[1754869827167,0.2161296,806.21,806.02,0.8362277]
[1754869827362,0.2161296,806.21,806.03,0.8362277]
[1754869829373,0.2161296,806.21,806.04,0.8362277]
[1754869829870,0.2161296,806.21,806.05,0.8362277]
[1754869830671,0.2161296,806.21,806.04,0.8362277]
[1754869831173,0.2161296,806.21,806.05,0.8362277]
[1754869832874,0.2161296,806.21,806.06,0.8362277]
[1754869833273,0.2161296,806.21,806.07,0.8362277]
[1754869835275,0.2161296,806.21,805.9,1.116944]
[1754869835276,0.2161296,806.21,806.08,0.8362277]
[1754869836272,0.2161296,806.21,806.09,0.8362277]
[1754869837479,0.2161296,806.21,806.1,0.8362277]
[1754869837678,0.2161296,806.21,806.07,0.8362277]
[1754869837876,0.83245694,806.72,806.07,0.62018062]
[1754869838279,0.83245694,806.7,805.89,1.116944]
[1754869838576,2.7917566,807.81,805.89,1.116944]
[1754869838577,0.83245694,806.71,805.89,1.116944]
[1754869839275,0.83245694,806.7,805.89,1.116944]
[1754869839474,0.83245694,806.69,805.9,1.116944]
[1754869839878,0.83245694,806.72,805.93,1.116944]
[1754869840475,0.83245694,806.7,805.95,1.116944]
[1754869840675,0.83245694,806.69,805.95,1.116944]
[1754869840876,0.21604172,806.52,805.95,1.116944]
[1754869842280,0.21604172,806.52,805.96,1.116944]
[1754869844279,0.21604172,806.52,805.97,1.116944]
[1754869845581,0.21604172,806.52,805.96,1.116944]
[1754869847585,0.21604172,806.52,806.01,1.116944]
[1754869847787,0.21604172,806.52,806.02,1.116944]
[1754869848487,0.21604172,806.52,806.03,1.116944]
[1754869848683,0.21604172,806.52,806.04,1.116944]
[1754869849185,0.21604172,806.52,806.03,1.116944]
[1754869849584,0.21604172,806.52,806.04,1.116944]
[1754869849786,0.21604172,806.52,806.09,1.116944]
[1754869852687,0.21604172,806.52,806.1,1.116944]
[1754869862903,0.21604172,806.52,806.03,1.116944]
[1754869863905,0.21604172,806.52,806.02,1.116944]
[1754869864606,0.21604172,806.52,806.2,1.116944]
[1754869864802,0.21604172,806.52,806.32,1.674752]
[1754869865209,0.21604172,806.52,806.37,1.674752]
[1754869865408,0.21604172,806.52,806.41,1.1150379]
[1754869866311,0.21604172,806.52,806.36,1.1150379]
[1754869867414,0.21604172,806.52,806.34,1.1150379]
[1754869868511,0.21604172,806.52,806.32,1.1150379]
[1754869868814,0.21604172,806.52,806.34,1.1150379]
[1754869869014,0.21604172,806.52,806.35,1.1150379]
[1754869869213,0.21604172,806.52,806.34,1.1150379]
[1754869869614,0.21604172,806.52,806.4,1.1150379]
[1754869870514,0.21604172,806.52,806.5,1.1150379]